fUST/lending_fUST_20240916
["ID","MTS","AMOUNT","RATE_DAILY","PERIOD"]
[338302108,1726487445649,-500.0,0.00019452,2]
[338302109,1726487445658,-1108.93,0.00019452,2]
[338302110,1726487445667,-500.0,0.00019452,2]
[338302111,1726487445676,-250.0,0.00019452,2]
[338302112,1726487445686,-500.0,0.00019452,2]
[338302113,1726487445696,-500.0,0.00019452,2]
[338302114,1726487445705,-500.0,0.00019452,2]
[338302115,1726487445715,-500.0,0.00019452,2]
[338302116,1726487445725,-500.0,0.00019452,2]
[338302117,1726487445735,-711.32,0.00019452,2]
[338302118,1726487445745,-500.0,0.00019452,2]
[338302120,1726487445754,-500.0,0.00019452,2]
[338302121,1726487445764,-500.0,0.00019452,2]
[338302122,1726487445775,-500.0,0.00019452,2]
[338302123,1726487445785,-1789.87,0.00019452,2]
[338302124,1726487445795,-500.0,0.00019452,2]
[338302125,1726487445805,-500.0,0.00019452,2]
[338302126,1726487445814,-1213.83,0.00019452,2]
[338302127,1726487445824,-500.0,0.00019452,2]
[338302128,1726487445833,-500.0,0.00019452,2]
[338302129,1726487445843,-1512.68,0.00019452,2]
[338302130,1726487445852,-500.0,0.00019452,2]
[338302132,1726487445862,-500.0,0.00019452,2]
[338302134,1726487445871,-500.0,0.00019452,2]
[338302136,1726487445881,-463.42151042,0.00019452,2]
[338302138,1726487445891,-500.0,0.00019452,2]
[338302140,1726487445901,-817.24,0.00019452,2]
[338302142,1726487445911,-500.0,0.00019452,2]
[338302144,1726487445920,-500.0,0.00019452,2]
[338302146,1726487445930,-500.0,0.00019452,2]
[338302148,1726487445940,-536.45,0.00019452,2]
[338302149,1726487445950,-232.05484221,0.00019452,2]
[338302150,1726487445960,-500.0,0.00019452,2]
[338302151,1726487445972,-1521.54,0.00019452,2]
[338302152,1726487445982,-500.0,0.00019452,2]
[338302153,1726487445992,-500.0,0.00019452,2]
[338302154,1726487446002,-500.0,0.00019452,2]
[338302155,1726487446012,-500.0,0.00019452,2]
[338302156,1726487446021,-520.67,0.00019452,2]
[338302157,1726487446031,-500.0,0.00019452,2]
[338302158,1726487446040,-500.0,0.00019452,2]
[338302159,1726487446050,-750.77,0.00019452,2]
[338302160,1726487446059,-500.0,0.00019452,2]
[338302161,1726487446069,-322.65325709,0.00019452,2]
[338302162,1726487446081,-1272.72,0.00019452,2]
[338302163,1726487446092,-500.0,0.00019452,2]
[338302164,1726487446101,-500.0,0.00019452,2]
[338302165,1726487446111,-500.0,0.00019452,2]
[338302166,1726487446121,-1041.87,0.00019452,2]
[338302167,1726487446131,-500.0,0.00019452,2]
[338302168,1726487446141,-500.0,0.00019452,2]
[338302169,1726487446151,-500.0,0.00019452,2]
[338302170,1726487446163,-581.53,0.00019452,2]
[338302171,1726487446173,-500.0,0.00019452,2]
[338302172,1726487446183,-746.63,0.00019452,2]
[338302173,1726487446193,-500.0,0.00019452,2]
[338302174,1726487446202,-541.06,0.00019452,2]
[338302175,1726487446213,-2993.96,0.00019452,2]
[338302176,1726487446223,-1295.35,0.00019452,2]
[338302177,1726487446233,-607.13,0.00019452,2]
[338302178,1726487446243,-500.0,0.00019452,2]
[338302179,1726487446253,-500.0,0.00019452,2]
[338302180,1726487446263,-533.62,0.00019452,2]
[338302181,1726487446273,-500.0,0.00019452,2]
[338302182,1726487446283,-500.0,0.00019452,2]
[338302183,1726487446295,-500.0,0.00019452,2]
[338302184,1726487446307,-500.0,0.00019452,2]
[338302186,1726487446318,-1576.77,0.00019452,2]
[338302188,1726487446329,-500.0,0.00019452,2]
[338302190,1726487446339,-563.54,0.00019452,2]
[338302193,1726487446349,-1046.94,0.00019452,2]
[338302196,1726487446362,-500.0,0.00019452,2]
[338302198,1726487446372,-500.0,0.00019452,2]
[338302201,1726487446383,-1387.38,0.00019452,2]
[338302204,1726487446393,-1184.67,0.00019452,2]
[338302206,1726487446403,-536.93,0.00019452,2]
[338302208,1726487446412,-500.0,0.00019452,2]
[338302210,1726487446422,-500.0,0.00019452,2]
[338302212,1726487446432,-504.43,0.00019452,2]
[338302214,1726487446442,-219.4816423,0.00019452,2]
[338302216,1726487446452,-950.37,0.00019452,2]
[338302218,1726487446463,-500.0,0.00019452,2]
[338302220,1726487446473,-1694.38,0.00019452,2]
[338302222,1726487446483,-508.55316054,0.00019452,2]
[338302224,1726487446493,-500.0,0.00019452,2]
[338302226,1726487446502,-500.0,0.00019452,2]
[338302228,1726487446512,-3362.95,0.00019452,2]
[338302231,1726487446524,-2878.53,0.00019452,2]
[338302232,1726487446534,-500.0,0.00019452,2]
[338302235,1726487446546,-500.0,0.00019452,2]
[338302237,1726487446555,-619.61,0.00019452,2]
[338302239,1726487446565,-865.59,0.00019452,2]
[338302241,1726487446574,-500.0,0.00019452,2]
[338302243,1726487446583,-755.05,0.00019452,2]
[338302245,1726487446593,-500.0,0.00019452,2]
[338302247,1726487446602,-500.0,0.00019452,2]
[338302249,1726487446612,-1585.15,0.00019452,2]
[338302251,1726487446621,-500.0,0.00019452,2]
[338302252,1726487446631,-605.75,0.00019452,2]
[338302255,1726487446640,-672.69,0.00019452,2]
[338302257,1726487446651,-1207.26,0.00019452,2]
[338302259,1726487446660,-577.3,0.00019452,2]
[338302261,1726487446670,-500.0,0.00019452,2]
[338302263,1726487446680,-500.0,0.00019452,2]
[338302265,1726487446689,-1184.32,0.00019452,2]
[338302267,1726487446701,-500.0,0.00019452,2]
[338302269,1726487446711,-1194.36,0.00019452,2]
[338302271,1726487446721,-500.0,0.00019452,2]
[338302273,1726487446731,-674.3,0.00019452,2]
[338302275,1726487446741,-714.7,0.00019452,2]
[338302277,1726487446750,-500.0,0.00019452,2]
[338302279,1726487446760,-500.0,0.00019452,2]
[338302281,1726487446770,-1017.35,0.00019452,2]
[338302283,1726487446779,-966.29,0.00019452,2]
[338302285,1726487446789,-2044.53,0.00019452,2]
[338302287,1726487446798,-500.0,0.00019452,2]
[338302288,1726487446808,-1034.38,0.00019452,2]
[338302289,1726487446818,-1001.23,0.00019452,2]
[338302290,1726487446828,-1233.26,0.00019452,2]
[338302292,1726487446837,-500.0,0.00019452,2]
[338302294,1726487446847,-1885.03,0.00019452,2]
[338302296,1726487446857,-500.0,0.00019452,2]
[338302298,1726487446867,-1223.72,0.00019452,2]
[338302300,1726487446876,-500.0,0.00019452,2]
[338302302,1726487446886,-617.4,0.00019452,2]
[338302303,1726487446896,-3813.58,0.00019452,2]
[338302305,1726487446907,-1357.32,0.00019452,2]
[338302307,1726487446916,-578.31,0.00019452,2]
[338302309,1726487446926,-500.0,0.00019452,2]
[338302311,1726487446936,-500.0,0.00019452,2]
[338302313,1726487446947,-500.0,0.00019452,2]
[338302315,1726487446958,-500.0,0.00019452,2]
[338302317,1726487446968,-500.0,0.00019452,2]
[338302319,1726487446978,-500.0,0.00019452,2]
[338302321,1726487446987,-2771.15,0.00019452,2]
[338302323,1726487446997,-1514.45,0.00019452,2]
[338302325,1726487447007,-573.01,0.00019452,2]
[338302327,1726487447018,-640.42,0.00019452,2]
[338302329,1726487447028,-500.0,0.00019452,2]
[338302331,1726487447037,-500.0,0.00019452,2]
[338302333,1726487447047,-500.0,0.00019452,2]
[338302335,1726487447057,-1790.58,0.00019452,2]
[338302337,1726487447067,-1089.61,0.00019452,2]
[338302338,1726487447076,-588.67,0.00019452,2]
[338302340,1726487447087,-500.0,0.00019452,2]
[338302342,1726487447097,-500.0,0.00019452,2]
[338302344,1726487447107,-500.0,0.00019452,2]
[338302345,1726487447117,-608.92,0.00019452,2]
[338302346,1726487447126,-630.47,0.00019452,2]
[338302347,1726487447138,-4456.67,0.00019452,2]
[338302348,1726487447148,-500.0,0.00019452,2]
[338302349,1726487447157,-500.0,0.00019452,2]
[338302350,1726487447168,-516.71,0.00019452,2]
[338302351,1726487447178,-500.0,0.00019452,2]
[338302352,1726487447188,-500.0,0.00019452,2]
[338302353,1726487447198,-500.0,0.00019452,2]
[338302354,1726487447209,-1022.00074735,0.00019452,2]
[338302355,1726487447591,-1201.197582,0.00016419,2]
[338302356,1726487447601,-2624.15925265,0.00019452,2]
[338302357,1726487447612,-500.0,0.00019452,2]
[338302358,1726487447622,-659.11,0.00019452,2]
[338302359,1726487447632,-500.0,0.00019452,2]
[338302360,1726487447642,-3112.47,0.00019452,2]
[338302361,1726487447652,-514.22,0.00019452,2]
[338302362,1726487447834,-1392.59,0.00019452,2]
[338302363,1726487447844,-531.34,0.00019452,2]
[338302364,1726487447854,-500.0,0.00019452,2]
[338302365,1726487447864,-500.0,0.00019452,2]
[338302366,1726487447874,-500.0,0.00019452,2]
[338302367,1726487447884,-867.26,0.00019452,2]
[338302368,1726487447894,-540.18,0.00019452,2]
[338302369,1726487447904,-902.99,0.00019452,2]
[338302370,1726487447914,-841.8,0.00019452,2]
[338302371,1726487447924,-500.0,0.00019452,2]
[338302372,1726487447934,-500.0,0.00019452,2]
[338302373,1726487447943,-500.0,0.00019452,2]
[338302374,1726487447952,-822.05,0.00019452,2]
[338302375,1726487447964,-3577.83,0.00019452,2]
[338302376,1726487447973,-982.91,0.00019452,2]
[338302377,1726487447983,-882.16,0.00019452,2]
[338302378,1726487447992,-640.79,0.00019452,2]
[338302379,1726487448002,-1561.36,0.00019452,2]
[338302380,1726487448012,-1618.43,0.00019452,2]
[338302381,1726487448021,-500.0,0.00019452,2]
[338302382,1726487448031,-500.0,0.00019452,2]
[338302383,1726487448041,-1481.69,0.00019452,2]
[338302384,1726487448051,-2129.52,0.00019452,2]
[338302385,1726487448061,-500.0,0.00019452,2]
[338302386,1726487448071,-436.9663906,0.00019452,2]
[338302387,1726487448081,-500.0,0.00019452,2]
[338302388,1726487448091,-200.0,0.00019452,2]
[338302389,1726487448101,-500.0,0.00019452,2]
[338302390,1726487448111,-500.0,0.00019452,2]
[338302391,1726487448120,-1384.9,0.00019452,2]
[338302392,1726487448130,-744.8437429,0.00019452,2]
[338302393,1726487448995,-321.29076447,0.0001796,2]
[338302396,1726487592438,162.468613,0.00013699,2]
[338302509,1726487825650,7471.43,0.00027397,120]
[338302510,1726487825897,7471.43,0.00027397,120]
[338302511,1726487826166,7471.43,0.00027397,120]
[338302512,1726487826429,7471.43,0.00027397,120]
[338302513,1726487826696,7471.43,0.00027397,120]
[338302514,1726487826957,7471.43,0.00027397,120]
[338302515,1726487827216,7471.43,0.00027397,120]
[338302516,1726487827476,7471.43,0.00027397,120]
[338302517,1726487827716,7471.43,0.00027397,120]
[338302518,1726487827988,7471.43,0.00027397,120]
[338302519,1726487828286,7471.43,0.00027397,120]
[338302520,1726487828576,7471.43,0.00027397,120]
[338302522,1726487828876,7471.43,0.00027397,120]
[338302523,1726487829196,7471.43,0.00027397,120]
[338302525,1726487829456,7471.43,0.00027397,120]
[338302526,1726487829718,7471.43,0.00027397,120]
[338302528,1726487830001,7471.43,0.00027397,120]
[338302530,1726487830574,7471.43,0.00027397,120]
[338302531,1726487830655,7471.43,0.00027397,120]
[338302532,1726487830779,7471.43,0.00027397,120]
[338302534,1726487831072,7471.43,0.00027397,120]
[338302536,1726487831352,7471.43,0.00027397,120]
[338302537,1726487831606,7471.43,0.00027397,120]
[338302539,1726487831891,7471.63554153,0.00027397,120]
[338302608,1726488061454,500.0,0.00027397,120]
[338302622,1726488338410,163.56365189,0.00028,120]
[338302655,1726488632266,-300.0,0.00016366,2]
[338302657,1726488632275,-300.0,0.00016366,2]
[338302659,1726488632285,-13411.00544464,0.00016367,2]
[338302668,1726488638488,-11488.99455536,0.00016367,2]
[338302669,1726488638500,-191.187883,0.00016826,2]
[338302670,1726488638509,-191.187883,0.00016872,2]
[338302671,1726488638521,-191.187883,0.00016918,2]
[338302672,1726488638531,-191.187883,0.00016964,2]
[338302673,1726488638540,-191.187883,0.00017011,2]
[338302674,1726488638549,-191.187883,0.00017057,2]
[338302675,1726488638559,-191.187883,0.00017103,2]
[338302676,1726488638568,-191.187883,0.00017149,2]
[338302677,1726488638578,-191.187883,0.00017195,2]
[338302678,1726488638588,-191.187883,0.00017241,2]
[338302679,1726488638599,-191.187883,0.00017287,2]
[338302680,1726488638609,-6591.85840208,0.00017316,2]
[338302681,1726488638618,-191.187883,0.00017333,2]
[338302682,1726488638628,-191.187883,0.0001738,2]
[338302683,1726488638640,-191.187883,0.00017426,2]
[338302684,1726488638649,-191.187883,0.00017472,2]
[338302685,1726488638659,-191.187883,0.00017518,2]
[338302686,1726488638668,-11104.8203493,0.00017534,2]
[338302687,1726488638678,-191.187883,0.00017564,2]
[338302688,1726488638687,-191.187883,0.0001761,2]
[338302689,1726488638696,-191.187883,0.00017656,2]
[338302690,1726488638706,-6591.85840208,0.00017662,2]
[338302691,1726488638716,-4915.3168168,0.0001769,2]
[338302692,1726488638726,-191.187883,0.00017703,2]
[338302693,1726488638735,-420.0,0.00017887,2]
[338302694,1726488638745,-218.55549092,0.000179,2]
[338302695,1726488638755,-6591.85840208,0.000179,2]
[338302696,1726488638764,-650.21961667,0.00018,2]
[338302697,1726488638773,-206.85933239,0.00018,2]
[338302698,1726488638783,-420.0,0.00018003,2]
[338302699,1726488638792,-6591.85840208,0.00018242,2]
[338302700,1726488638805,-4915.31681678,0.00018277,2]
[338302701,1726488638814,-1204.678491,0.00018389,2]
[338302702,1726488638823,-6591.85840208,0.00018584,2]
[338302703,1726488638832,-955.668939,0.000188,2]
[338302704,1726488638842,-6591.85840208,0.00018844,2]
[338302705,1726488638851,-4915.31681678,0.00018864,2]
[338302706,1726488638862,-6591.85840208,0.00018996,2]
[338302707,1726488638873,-445.16,0.00019038,3]
[338302708,1726488638882,-1000.0,0.00019046,2]
[338302709,1726488638893,-2422.60318394,0.00019048,2]
[338302710,1726488638904,-500.0,0.00019134,2]
[338302711,1726488638915,-496.32435612,0.00019134,2]
[338302712,1726488638925,-500.0,0.00019134,2]
[338302713,1726488638935,-500.0,0.00019134,2]
[338302714,1726488638945,-500.0,0.00019134,2]
[338302715,1726488638955,-500.0,0.00019134,2]
[338302716,1726488638965,-500.0,0.00019134,2]
[338302717,1726488638975,-156.20490408,0.00019134,2]
[338302718,1726488638985,-488.61372062,0.00019134,2]
[338302719,1726488638995,-500.0,0.00019134,2]
[338302720,1726488639004,-500.0,0.00019134,2]
[338302721,1726488639017,-500.68356716,0.00019134,2]
[338302722,1726488639027,-500.0,0.00019134,2]
[338302723,1726488639038,-500.0,0.00019134,2]
[338302724,1726488639047,-500.0,0.00019134,2]
[338302725,1726488639057,-500.0,0.00019134,2]
[338302726,1726488639066,-500.0,0.00019134,2]
[338302727,1726488639076,-500.0,0.00019134,2]
[338302728,1726488639086,-625.29805272,0.00019134,2]
[338302729,1726488639095,-500.0,0.00019134,2]
[338302730,1726488639104,-500.0,0.00019134,2]
[338302731,1726488639114,-500.0,0.00019134,2]
[338302732,1726488639123,-500.0,0.00019134,2]
[338302733,1726488639134,-500.0,0.00019134,2]
[338302734,1726488639143,-500.0,0.00019134,2]
[338302735,1726488639153,-500.0,0.00019134,2]
[338302736,1726488639163,-500.0,0.00019134,2]
[338302737,1726488639174,-500.0,0.00019134,2]
[338302738,1726488639186,-500.0,0.00019134,2]
[338302739,1726488639196,-550.0,0.00019134,2]
[338302740,1726488639207,-500.0,0.00019134,2]
[338302741,1726488639217,-500.0,0.00019134,2]
[338302742,1726488639226,-500.0,0.00019134,2]
[338302743,1726488639236,-500.0,0.00019134,2]
[338302744,1726488639247,-500.0,0.00019134,2]
[338302745,1726488639256,-500.0,0.00019134,2]
[338302746,1726488639266,-569.47756141,0.00019134,2]
[338302747,1726488639277,-500.0,0.00019134,2]
[338302748,1726488639287,-500.0,0.00019134,2]
[338302749,1726488639296,-500.0,0.00019134,2]
[338302750,1726488639306,-500.0,0.00019134,2]
[338302751,1726488639316,-500.0,0.00019134,2]
[338302752,1726488639325,-500.0,0.00019134,2]
[338302753,1726488639335,-500.0,0.00019134,2]
[338302754,1726488639344,-500.0,0.00019134,2]
[338302755,1726488639354,-500.0,0.00019134,2]
[338302756,1726488639365,-500.0,0.00019134,2]
[338302757,1726488639374,-500.0,0.00019134,2]
[338302758,1726488639383,-500.0,0.00019134,2]
[338302759,1726488639392,-500.0,0.00019134,2]
[338302760,1726488639402,-500.0,0.00019134,2]
[338302761,1726488639411,-500.0,0.00019134,2]
[338302762,1726488639420,-500.0,0.00019134,2]
[338302763,1726488639431,-500.0,0.00019134,2]
[338302764,1726488639441,-500.0,0.00019134,2]
[338302765,1726488639450,-500.0,0.00019134,2]
[338302766,1726488639459,-500.0,0.00019134,2]
[338302767,1726488639470,-500.0,0.00019134,2]
[338302768,1726488639480,-500.0,0.00019134,2]
[338302769,1726488639489,-500.0,0.00019134,2]
[338302770,1726488639498,-500.0,0.00019134,2]
[338302771,1726488639507,-500.0,0.00019134,2]
[338302772,1726488639517,-500.0,0.00019134,2]
[338302773,1726488639527,-500.0,0.00019134,2]
[338302774,1726488639537,-500.0,0.00019134,2]
[338302775,1726488639546,-500.0,0.00019134,2]
[338302776,1726488639556,-500.0,0.00019134,2]
[338302777,1726488639565,-500.0,0.00019134,2]
[338302778,1726488639575,-500.0,0.00019134,2]
[338302779,1726488639585,-500.0,0.00019134,2]
[338302780,1726488639597,-500.0,0.00019134,2]
[338302781,1726488639607,-500.0,0.00019134,2]
[338302782,1726488639617,-500.0,0.00019134,2]
[338302783,1726488639626,-500.0,0.00019134,2]
[338302784,1726488639636,-500.0,0.00019134,2]
[338302785,1726488639646,-500.0,0.00019134,2]
[338302786,1726488639655,-500.0,0.00019134,2]
[338302787,1726488639667,-500.0,0.00019134,2]
[338302788,1726488639677,-500.0,0.00019134,2]
[338302789,1726488639687,-500.0,0.00019134,2]
[338302790,1726488639696,-500.0,0.00019134,2]
[338302791,1726488639706,-500.0,0.00019134,2]
[338302792,1726488639715,-500.0,0.00019134,2]
[338302793,1726488639730,-500.0,0.00019134,2]
[338302794,1726488639739,-500.0,0.00019134,2]
[338302795,1726488639748,-566.66457448,0.00019134,2]
[338302796,1726488639758,-500.0,0.00019134,2]
[338302797,1726488639767,-500.0,0.00019134,2]
[338302798,1726488639777,-80829.4951834,0.00019135,3]
[338302799,1726488639786,-15167.9990897,0.00019135,3]
[338302800,1726488639798,-80829.4951834,0.00019136,3]
[338302802,1726488639808,-15167.9990897,0.00019136,3]
[338302803,1726488639818,-500.0,0.00019136,2]
[338302804,1726488639828,-231.90810767,0.00019136,2]
[338302805,1726488639837,-424.12010278,0.00019136,2]
[338302806,1726488639848,-500.0,0.00019136,2]
[338302807,1726488639859,-500.0,0.00019136,2]
[338302808,1726488639869,-500.0,0.00019136,2]
[338302809,1726488639879,-500.0,0.00019136,2]
[338302810,1726488639889,-500.0,0.00019136,2]
[338302811,1726488639900,-500.0,0.00019136,2]
[338302812,1726488639909,-500.0,0.00019136,2]
[338302813,1726488639919,-500.0,0.00019136,2]
[338302814,1726488639928,-500.0,0.00019136,2]
[338302815,1726488639938,-196.07172135,0.00019136,2]
[338302816,1726488639947,-500.0,0.00019136,2]
[338302817,1726488639956,-500.0,0.00019136,2]
[338302818,1726488639965,-500.0,0.00019136,2]
[338302819,1726488639976,-500.0,0.00019136,2]
[338302821,1726488639986,-500.0,0.00019136,2]
[338302823,1726488639997,-500.0,0.00019136,2]
[338302824,1726488640008,-500.0,0.00019136,2]
[338302826,1726488640018,-500.0,0.00019136,2]
[338302828,1726488640029,-80829.4951834,0.00019137,3]
[338302829,1726488640039,-15167.9990897,0.00019137,3]
[338302830,1726488640050,-161658.990367,0.00019138,3]
[338302831,1726488640061,-45503.9972691,0.00019138,3]
[338302832,1726488640071,-235.01436437,0.00019139,2]
[338302833,1726488640080,-30335.9981794,0.00019148,3]
[338302834,1726488640090,-15167.9990897,0.00019158,3]
[338302835,1726488640100,-15167.9990897,0.00019168,3]
[338302836,1726488640110,-76462.39736535,0.00019168,3]
[338302871,1726488640634,-40757.42495904,0.00019168,3]
[338302882,1726488640839,-34460.16857261,0.00019168,3]
[338302885,1726488640852,-500.0,0.00019173,2]
[338302887,1726488640862,-500.0,0.00019173,2]
[338302889,1726488640872,-500.0,0.00019173,2]
[338302891,1726488640883,-288.2482218,0.00019173,2]
[338302893,1726488640892,-500.0,0.00019173,2]
[338302895,1726488640902,-500.0,0.00019173,2]
[338302897,1726488640912,-500.0,0.00019173,2]
[338302899,1726488640921,-500.0,0.00019173,2]
[338302901,1726488640930,-608.66484805,0.00019173,2]
[338302903,1726488640940,-331.5451701,0.00019173,2]
[338302905,1726488640951,-500.0,0.00019173,2]
[338302907,1726488640961,-500.0,0.00019173,2]
[338302909,1726488640972,-500.0,0.00019173,2]
[338302911,1726488640981,-500.0,0.00019173,2]
[338302913,1726488640990,-500.0,0.00019173,2]
[338302915,1726488641000,-500.0,0.00019173,2]
[338302917,1726488641012,-500.0,0.00019173,2]
[338302919,1726488641023,-34489.03211148,0.00019178,5]
[338302922,1726488641034,-323.26976223,0.00019178,2]
[338302924,1726488641045,-500.0,0.00019178,2]
[338302926,1726488641055,-1406.5,0.00019178,2]
[338302928,1726488641068,-500.0,0.00019178,2]
[338302930,1726488641078,-500.0,0.00019178,2]
[338302932,1726488641087,-500.0,0.00019178,2]
[338302934,1726488641097,-578.09,0.00019178,2]
[338302936,1726488641106,-500.0,0.00019178,2]
[338302938,1726488641115,-500.0,0.00019178,2]
[338302940,1726488641126,-500.0,0.00019178,2]
[338302943,1726488641137,-500.0,0.00019178,2]
[338302944,1726488641146,-612.34,0.00019178,2]
[338302947,1726488641155,-500.0,0.00019178,2]
[338302948,1726488641164,-500.0,0.00019178,2]
[338302950,1726488641173,-500.0,0.00019178,2]
[338302952,1726488641183,-563.29117505,0.00019178,2]
[338302954,1726488641192,-500.0,0.00019178,2]
[338302956,1726488641201,-500.0,0.00019178,2]
[338302958,1726488641210,-500.0,0.00019178,2]
[338302960,1726488641219,-500.0,0.00019178,2]
[338302962,1726488641229,-500.0,0.00019178,2]
[338302964,1726488641239,-500.0,0.00019178,2]
[338302966,1726488641248,-500.0,0.00019178,2]
[338302968,1726488641258,-500.0,0.00019178,2]
[338302970,1726488641267,-501.73184412,0.00019178,2]
[338302972,1726488641277,-500.0,0.00019178,2]
[338302974,1726488641286,-500.0,0.00019178,2]
[338302976,1726488641296,-500.0,0.00019178,2]
[338302978,1726488641305,-508.53643356,0.00019178,2]
[338302980,1726488641315,-500.0,0.00019178,2]
[338302982,1726488641324,-500.0,0.00019178,2]
[338302984,1726488641334,-1271.77,0.00019178,2]
[338302986,1726488641343,-500.0,0.00019178,2]
[338302988,1726488641354,-500.0,0.00019178,2]
[338302991,1726488641363,-500.0,0.00019178,2]
[338302992,1726488641373,-500.0,0.00019178,2]
[338302994,1726488641382,-500.0,0.00019178,2]
[338302997,1726488641392,-500.0,0.00019178,2]
[338302999,1726488641401,-500.0,0.00019178,2]
[338303000,1726488641410,-500.0,0.00019178,2]
[338303002,1726488641420,-500.0,0.00019178,2]
[338303004,1726488641430,-500.0,0.00019178,2]
[338303007,1726488641439,-817.02,0.00019178,2]
[338303009,1726488641449,-501.02223224,0.00019178,2]
[338303011,1726488641458,-956.01,0.00019178,2]
[338303013,1726488641467,-500.0,0.00019178,2]
[338303015,1726488641477,-500.0,0.00019178,2]
[338303016,1726488641486,-500.0,0.00019178,2]
[338303018,1726488641496,-630.96870364,0.00019178,2]
[338303021,1726488641506,-500.0,0.00019178,2]
[338303023,1726488641516,-500.0,0.00019178,2]
[338303025,1726488641526,-500.0,0.00019178,2]
[338303027,1726488641536,-511.13255252,0.00019178,2]
[338303029,1726488641545,-643.09,0.00019178,2]
[338303031,1726488641555,-500.0,0.00019178,2]
[338303033,1726488641564,-521.74,0.00019178,2]
[338303035,1726488641574,-500.0,0.00019178,2]
[338303037,1726488641583,-500.0,0.00019178,2]
[338303038,1726488641592,-500.0,0.00019178,2]
[338303040,1726488641602,-501.4034523,0.00019178,2]
[338303042,1726488641612,-500.0,0.00019178,2]
[338303045,1726488641622,-500.0,0.00019178,2]
[338303047,1726488641632,-500.0,0.00019178,2]
[338303049,1726488641641,-643.80595619,0.00019178,2]
[338303050,1726488641650,-500.0,0.00019178,2]
[338303053,1726488641660,-564.08,0.00019178,2]
[338303054,1726488641669,-833.7,0.00019178,2]
[338303057,1726488641679,-500.0,0.00019178,2]
[338303058,1726488641689,-1039.03,0.00019178,2]
[338303060,1726488641698,-751.62,0.00019178,2]
[338303062,1726488641707,-500.0,0.00019178,2]
[338303064,1726488641716,-500.0,0.00019178,2]
[338303066,1726488641727,-500.0,0.00019178,2]
[338303068,1726488641736,-785.26,0.00019178,2]
[338303070,1726488641746,-500.0,0.00019178,2]
[338303072,1726488641756,-2638.65,0.00019178,2]
[338303075,1726488641766,-500.0,0.00019178,2]
[338303076,1726488641775,-500.0,0.00019178,2]
[338303078,1726488641784,-500.0,0.00019178,2]
[338303080,1726488641794,-583.66,0.00019178,2]
[338303082,1726488641803,-500.0,0.00019178,2]
[338303084,1726488641813,-500.0,0.00019178,2]
[338303086,1726488641822,-500.0,0.00019178,2]
[338303089,1726488641833,-500.0,0.00019178,2]
[338303091,1726488641843,-500.0,0.00019178,2]
[338303093,1726488641853,-500.0,0.00019178,2]
[338303095,1726488641862,-522.3,0.00019178,2]
[338303097,1726488641871,-1000.0,0.00019178,2]
[338303099,1726488641881,-500.0,0.00019178,2]
[338303101,1726488641891,-500.0,0.00019178,2]